[Event "Titled Tuesday Blitz May 03 Early 2022"]
[White "Polster, Christian"]
[Black "Estrada Nieto, Julian"]
[WhiteFideId "12965081"]
[BlackFideId "5101018"]
[WhiteElo "2282"]
[BlackElo "2252"]
[Result "0-1"]
[Round "06"]
[TimeControl "180+1"]
[Date "2022.05.03"]
[WhiteClock "0:00:06"]
[BlackClock "0:01:38"]

1. e4 {[%clk 0:03:00]}  e5 {[%clk 0:02:59]} 2. Nf3 {[%clk 0:03:00]}  Nc6 {[%clk 0:02:59]} 3. Bc4 {[%clk 0:03:00]}  Bc5 {[%clk 0:02:58]} 4. O-O {[%clk 0:02:56]}  d6 {[%clk 0:02:55]} 5. c3 {[%clk 0:02:54]}  Nf6 {[%clk 0:02:55]} 6. d4 {[%clk 0:02:53]}  exd4 {[%clk 0:02:54]} 7. cxd4 {[%clk 0:02:54]}  Bb6 {[%clk 0:02:55]} 8. Nc3 {[%clk 0:02:35]}  O-O {[%clk 0:02:54]} 9. h3 {[%clk 0:02:30]}  Nxe4 {[%clk 0:02:52]} 10. Nxe4 {[%clk 0:02:15]}  d5 {[%clk 0:02:52]} 11. Bd3 {[%clk 0:02:13]}  dxe4 {[%clk 0:02:51]} 12. Bxe4 {[%clk 0:02:12]}  Nxd4 {[%clk 0:02:52]} 13. Be3 {[%clk 0:01:47]}  Nxf3+ {[%clk 0:02:50]} 14. Qxf3 {[%clk 0:01:48]}  c6 {[%clk 0:02:49]} 15. Rad1 {[%clk 0:01:45]}  Qh4 {[%clk 0:02:39]} 16. Bb1 {[%clk 0:01:28]}  Be6 {[%clk 0:02:34]} 17. Bxb6 {[%clk 0:01:13]}  axb6 {[%clk 0:02:33]} 18. Qe3 {[%clk 0:01:10]}  b5 {[%clk 0:02:27]} 19. Rd4 {[%clk 0:01:08]}  Qf6 {[%clk 0:02:24]} 20. Rf4 {[%clk 0:01:03]}  Qxb2 {[%clk 0:02:22]} 21. Rh4 {[%clk 0:00:29]}  g6 {[%clk 0:02:17]} 22. Re1 {[%clk 0:00:17]}  Bxa2 {[%clk 0:02:11]} 23. Qh6 {[%clk 0:00:09]}  Qg7 {[%clk 0:02:05]} 24. Bxa2 {[%clk 0:00:06]}  Qxh6 {[%clk 0:02:03]} 25. Rxh6 {[%clk 0:00:05]}  Rxa2 {[%clk 0:02:04]} 26. Re7 {[%clk 0:00:06]}  Rd8 {[%clk 0:01:58]} 27. Rxb7 {[%clk 0:00:05]}  Rd1+ {[%clk 0:01:45]} 28. Kh2 {[%clk 0:00:05]}  Rxf2 {[%clk 0:01:43]} 29. Rh4 {[%clk 0:00:06]}  h5 {[%clk 0:01:40]} 30. Rg4 {[%clk 0:00:06]}  hxg4 {[%clk 0:01:38]} 0-1


[Site "https://www.chess.com"]

[Event "Titled Tuesday Blitz May 03 Early 2022"]
[White "Popadic, Dragan"]
[Black "Piliczewski, Bogusz"]
[WhiteFideId "913650"]
[BlackFideId "1104144"]
[WhiteElo "2203"]
[BlackElo "1896"]
[Result "1-0"]
[Round "06"]
[TimeControl "180+1"]
[Date "2022.05.03"]
[WhiteClock "0:00:38"]
[BlackClock "0:00:01"]

1. e4 {[%clk 0:02:49]}  c6 {[%clk 0:02:59]} 2. d4 {[%clk 0:02:48]}  d5 {[%clk 0:02:59]} 3. Nd2 {[%clk 0:02:46]}  dxe4 {[%clk 0:02:59]} 4. Nxe4 {[%clk 0:02:46]}  Bf5 {[%clk 0:02:57]} 5. Ng3 {[%clk 0:02:46]}  Bg6 {[%clk 0:02:58]} 6. h4 {[%clk 0:02:46]}  h6 {[%clk 0:02:57]} 7. Nf3 {[%clk 0:02:46]}  Nd7 {[%clk 0:02:56]} 8. h5 {[%clk 0:02:45]}  Bh7 {[%clk 0:02:56]} 9. Bd3 {[%clk 0:02:45]}  Bxd3 {[%clk 0:02:57]} 10. Qxd3 {[%clk 0:02:45]}  e6 {[%clk 0:02:57]} 11. Bd2 {[%clk 0:02:45]}  Ngf6 {[%clk 0:02:56]} 12. O-O-O {[%clk 0:02:45]}  Be7 {[%clk 0:02:57]} 13. Ne4 {[%clk 0:02:43]}  Nxe4 {[%clk 0:02:55]} 14. Qxe4 {[%clk 0:02:43]}  Nf6 {[%clk 0:02:55]} 15. Qe2 {[%clk 0:02:43]}  Qd5 {[%clk 0:02:55]} 16. Kb1 {[%clk 0:02:43]}  Qe4 {[%clk 0:02:51]} 17. Be3 {[%clk 0:02:43]}  Ng4 {[%clk 0:02:47]} 18. Nd2 {[%clk 0:02:42]}  Qf5 {[%clk 0:02:37]} 19. Nf1 {[%clk 0:02:41]}  Nxe3 {[%clk 0:02:34]} 20. Nxe3 {[%clk 0:02:40]}  Qa5 {[%clk 0:02:26]} 21. Qf3 {[%clk 0:02:29]}  Bf6 {[%clk 0:02:25]} 22. Ng4 {[%clk 0:02:24]}  Qg5 {[%clk 0:02:07]} 23. Ne5 {[%clk 0:01:45]}  Bxe5 {[%clk 0:01:59]} 24. dxe5 {[%clk 0:01:45]}  Qxe5 {[%clk 0:01:59]} 25. Rhe1 {[%clk 0:01:43]}  Qc5 {[%clk 0:01:47]} 26. Qb3 {[%clk 0:01:26]}  O-O {[%clk 0:01:26]} 27. Qxb7 {[%clk 0:01:24]}  Qxf2 {[%clk 0:01:18]} 28. Qxc6 {[%clk 0:01:18]}  Rac8 {[%clk 0:01:16]} 29. Qe4 {[%clk 0:01:17]}  Qf5 {[%clk 0:01:04]} 30. Qxf5 {[%clk 0:01:11]}  exf5 {[%clk 0:01:04]} 31. b3 {[%clk 0:01:12]}  Rfe8 {[%clk 0:00:58]} 32. c4 {[%clk 0:01:10]}  Rxe1 {[%clk 0:00:53]} 33. Rxe1 {[%clk 0:01:09]}  Kf8 {[%clk 0:00:54]} 34. Kc2 {[%clk 0:01:07]}  f4 {[%clk 0:00:45]} 35. Re4 {[%clk 0:01:03]}  Rc5 {[%clk 0:00:42]} 36. b4 {[%clk 0:01:01]}  Rxh5 {[%clk 0:00:41]} 37. Rxf4 {[%clk 0:01:01]}  Re5 {[%clk 0:00:34]} 38. Kd3 {[%clk 0:00:59]}  g5 {[%clk 0:00:32]} 39. Rf2 {[%clk 0:00:55]}  f5 {[%clk 0:00:28]} 40. c5 {[%clk 0:00:54]}  f4 {[%clk 0:00:27]} 41. Kd4 {[%clk 0:00:53]}  Re8 {[%clk 0:00:21]} 42. c6 {[%clk 0:00:48]}  Rc8 {[%clk 0:00:17]} 43. Kc5 {[%clk 0:00:47]}  h5 {[%clk 0:00:13]} 44. g3 {[%clk 0:00:45]}  Ke7 {[%clk 0:00:10]} 45. gxf4 {[%clk 0:00:45]}  g4 {[%clk 0:00:09]} 46. b5 {[%clk 0:00:43]}  h4 {[%clk 0:00:08]} 47. Rg2 {[%clk 0:00:43]}  g3 {[%clk 0:00:08]} 48. a4 {[%clk 0:00:41]}  Ke6 {[%clk 0:00:05]} 49. a5 {[%clk 0:00:40]}  Kf5 {[%clk 0:00:03]} 50. b6 {[%clk 0:00:40]}  axb6+ {[%clk 0:00:02]} 51. axb6 {[%clk 0:00:40]}  Kxf4 {[%clk 0:00:02]} 52. b7 {[%clk 0:00:40]}  Rb8 {[%clk 0:00:01]} 53. c7 {[%clk 0:00:38]} 1-0


[Site "https://www.chess.com"]

[Event "Titled Tuesday Blitz May 03 Early 2022"]
[White "Prohorov, Olexandr"]
[Black "Perez Gormaz, Matias"]
[WhiteFideId "14105578"]
[BlackFideId "3406342"]
[WhiteElo "1993"]
[BlackElo "2322"]
[Result "0-1"]
[Round "06"]
[TimeControl "180+1"]
[Date "2022.05.03"]
[WhiteClock "0:00:03"]
[BlackClock "0:00:09"]

1. Nf3 {[%clk 0:03:00]}  d5 {[%clk 0:02:59]} 2. d4 {[%clk 0:02:56]}  e6 {[%clk 0:02:57]} 3. c4 {[%clk 0:02:55]}  a6 {[%clk 0:02:57]} 4. cxd5 {[%clk 0:02:52]}  exd5 {[%clk 0:02:58]} 5. Bf4 {[%clk 0:02:52]}  Bd6 {[%clk 0:02:55]} 6. Bxd6 {[%clk 0:02:46]}  Qxd6 {[%clk 0:02:56]} 7. Nc3 {[%clk 0:02:47]}  Nf6 {[%clk 0:02:54]} 8. e3 {[%clk 0:02:47]}  O-O {[%clk 0:02:50]} 9. Bd3 {[%clk 0:02:47]}  Bg4 {[%clk 0:02:50]} 10. h3 {[%clk 0:02:46]}  Bxf3 {[%clk 0:02:51]} 11. Qxf3 {[%clk 0:02:45]}  Nbd7 {[%clk 0:02:47]} 12. Rc1 {[%clk 0:02:42]}  c6 {[%clk 0:02:47]} 13. O-O {[%clk 0:02:37]}  Rfe8 {[%clk 0:02:48]} 14. Rfe1 {[%clk 0:02:29]}  Re7 {[%clk 0:02:46]} 15. Ne2 {[%clk 0:02:12]}  Rae8 {[%clk 0:02:44]} 16. Qf4 {[%clk 0:02:04]}  Qb4 {[%clk 0:02:33]} 17. Red1 {[%clk 0:01:57]}  g6 {[%clk 0:02:17]} 18. Rc2 {[%clk 0:01:50]}  Kg7 {[%clk 0:02:12]} 19. g4 {[%clk 0:01:45]}  h6 {[%clk 0:02:12]} 20. a3 {[%clk 0:01:41]}  Qb6 {[%clk 0:02:03]} 21. Ng3 {[%clk 0:01:38]}  Nf8 {[%clk 0:02:01]} 22. Kg2 {[%clk 0:01:29]}  Ne6 {[%clk 0:02:01]} 23. Qf3 {[%clk 0:01:29]}  Qd8 {[%clk 0:01:23]} 24. Rh1 {[%clk 0:01:24]}  Qd7 {[%clk 0:01:19]} 25. h4 {[%clk 0:01:18]}  Nf8 {[%clk 0:01:16]} 26. g5 {[%clk 0:01:11]}  hxg5 {[%clk 0:01:16]} 27. hxg5 {[%clk 0:01:11]}  N6h7 {[%clk 0:01:17]} 28. Nh5+ {[%clk 0:00:59]}  gxh5 {[%clk 0:01:11]} 29. Qxh5 {[%clk 0:00:59]}  f5 {[%clk 0:00:41]} 30. gxf6+ {[%clk 0:00:48]}  Nxf6 {[%clk 0:00:41]} 31. Qg5+ {[%clk 0:00:45]}  Kf7 {[%clk 0:00:36]} 32. Bf5 {[%clk 0:00:41]}  Qd8 {[%clk 0:00:15]} 33. Rh6 {[%clk 0:00:34]}  Re6 {[%clk 0:00:14]} 34. Rh8 {[%clk 0:00:23]}  Ke7 {[%clk 0:00:10]} 35. Qg7+ {[%clk 0:00:17]}  Kd6 {[%clk 0:00:10]} 36. Bxe6 {[%clk 0:00:14]}  Kxe6 {[%clk 0:00:11]} 37. Qxb7 {[%clk 0:00:12]}  N8d7 {[%clk 0:00:05]} 38. Qxc6+ {[%clk 0:00:08]}  Kf7 {[%clk 0:00:05]} 39. Rxe8 {[%clk 0:00:06]}  Qxe8 {[%clk 0:00:06]} 40. Qd6 {[%clk 0:00:01]}  Qe4+ {[%clk 0:00:07]} 41. f3 {[%clk 0:00:02]}  Qxc2+ {[%clk 0:00:07]} 42. Kg3 {[%clk 0:00:02]}  Qg6+ {[%clk 0:00:07]} 43. Kf2 {[%clk 0:00:02]}  Qc2+ {[%clk 0:00:07]} 44. Kg3 {[%clk 0:00:03]}  Qxb2 {[%clk 0:00:08]} 45. Qc7 {[%clk 0:00:02]}  Qb8 {[%clk 0:00:07]} 46. Qxb8 {[%clk 0:00:01]}  Nxb8 {[%clk 0:00:08]} 47. Kf4 {[%clk 0:00:02]}  Ke6 {[%clk 0:00:09]} 48. e4 {[%clk 0:00:03]}  Nc6 {[%clk 0:00:09]} 49. exd5+ {[%clk 0:00:03]}  Nxd5+ {[%clk 0:00:10]} 50. Ke4 {[%clk 0:00:03]}  Nf6+ {[%clk 0:00:09]} 51. Kd3 {[%clk 0:00:03]}  Kd5 {[%clk 0:00:09]} 52. Kc3 {[%clk 0:00:03]}  Nxd4 {[%clk 0:00:08]} 53. Kb4 {[%clk 0:00:03]}  Nc6+ {[%clk 0:00:09]} 54. Ka4 {[%clk 0:00:02]}  Kc5 {[%clk 0:00:09]} 55. f4 {[%clk 0:00:03]}  Kc4 {[%clk 0:00:07]} 56. f5 {[%clk 0:00:03]}  Nd5 {[%clk 0:00:08]} 57. f6 {[%clk 0:00:03]}  Nc3# {[%clk 0:00:09]} 0-1


[Site "https://www.chess.com"]

[Event "Titled Tuesday Blitz May 03 Early 2022"]
[White "Puccini, Jack"]
[Black "Valle Maytin, Luis Enrique"]
[WhiteFideId "3213307"]
[BlackFideId "3503666"]
[WhiteElo "2352"]
[BlackElo "2300"]
[Result "1-0"]
[Round "06"]
[TimeControl "180+1"]
[Date "2022.05.03"]
[WhiteClock "0:00:43"]
[BlackClock "0:00:18"]

1. e4 {[%clk 0:03:00]}  c6 {[%clk 0:02:57]} 2. d4 {[%clk 0:03:00]}  d5 {[%clk 0:02:56]} 3. e5 {[%clk 0:03:01]}  c5 {[%clk 0:02:56]} 4. dxc5 {[%clk 0:03:02]}  Nc6 {[%clk 0:02:55]} 5. a3 {[%clk 0:03:01]}  e6 {[%clk 0:02:53]} 6. Nf3 {[%clk 0:03:00]}  Bxc5 {[%clk 0:02:52]} 7. b4 {[%clk 0:03:01]}  Bb6 {[%clk 0:02:53]} 8. Bd3 {[%clk 0:03:01]}  Nge7 {[%clk 0:02:52]} 9. O-O {[%clk 0:03:02]}  Ng6 {[%clk 0:02:52]} 10. Bb2 {[%clk 0:03:02]}  O-O {[%clk 0:02:51]} 11. Re1 {[%clk 0:03:02]}  a5 {[%clk 0:02:50]} 12. b5 {[%clk 0:03:01]}  Nce7 {[%clk 0:02:50]} 13. a4 {[%clk 0:02:59]}  Bc5 {[%clk 0:02:40]} 14. Nbd2 {[%clk 0:02:56]}  b6 {[%clk 0:02:40]} 15. Nb3 {[%clk 0:02:56]}  Qc7 {[%clk 0:02:39]} 16. g3 {[%clk 0:02:49]}  Bb7 {[%clk 0:02:39]} 17. Nbd4 {[%clk 0:02:40]}  Rfc8 {[%clk 0:02:34]} 18. h4 {[%clk 0:02:33]}  Nf8 {[%clk 0:02:33]} 19. h5 {[%clk 0:02:32]}  h6 {[%clk 0:02:30]} 20. c3 {[%clk 0:02:25]}  Nd7 {[%clk 0:02:30]} 21. Qe2 {[%clk 0:02:19]}  Re8 {[%clk 0:02:13]} 22. Nh4 {[%clk 0:02:11]}  Rac8 {[%clk 0:02:08]} 23. Rac1 {[%clk 0:01:59]}  Rcd8 {[%clk 0:02:03]} 24. Rc2 {[%clk 0:01:58]}  Nc8 {[%clk 0:02:02]} 25. Bc1 {[%clk 0:01:53]}  Bf8 {[%clk 0:02:01]} 26. Nb3 {[%clk 0:01:28]}  Nc5 {[%clk 0:01:53]} 27. Nxc5 {[%clk 0:01:28]}  bxc5 {[%clk 0:01:49]} 28. c4 {[%clk 0:01:28]}  d4 {[%clk 0:01:45]} 29. Qg4 {[%clk 0:01:22]}  Kh8 {[%clk 0:01:35]} 30. Ng6+ {[%clk 0:01:03]}  Kg8 {[%clk 0:01:33]} 31. Bxh6 {[%clk 0:00:59]}  fxg6 {[%clk 0:01:24]} 32. Qxg6 {[%clk 0:01:00]}  Ne7 {[%clk 0:01:20]} 33. Qh7+ {[%clk 0:00:42]}  Kf7 {[%clk 0:01:19]} 34. Bg5 {[%clk 0:00:43]}  Rd7 {[%clk 0:01:04]} 35. Bg6+ {[%clk 0:00:42]}  Nxg6 {[%clk 0:00:18]} 36. hxg6# {[%clk 0:00:43]} 1-0


[Site "https://www.chess.com"]

[Event "Titled Tuesday Blitz May 03 Early 2022"]
[White "Rabineau, Clement"]
[Black "Legenia, Artem"]
[WhiteFideId "628891"]
[BlackFideId "14136945"]
[WhiteElo "2237"]
[BlackElo "1936"]
[Result "1/2-1/2"]
[Round "06"]
[TimeControl "180+1"]
[Date "2022.05.03"]
[WhiteClock "0:00:07"]
[BlackClock "0:00:12"]

1. e4 {[%clk 0:03:00]}  d5 {[%clk 0:02:59]} 2. d3 {[%clk 0:03:00]}  dxe4 {[%clk 0:02:57]} 3. dxe4 {[%clk 0:03:01]}  Qxd1+ {[%clk 0:02:57]} 4. Kxd1 {[%clk 0:03:02]}  g6 {[%clk 0:02:50]} 5. Be3 {[%clk 0:03:00]}  Nc6 {[%clk 0:02:50]} 6. c3 {[%clk 0:02:59]}  Bg7 {[%clk 0:02:49]} 7. f3 {[%clk 0:02:54]}  f5 {[%clk 0:02:50]} 8. Nd2 {[%clk 0:02:52]}  Nf6 {[%clk 0:02:50]} 9. Bd3 {[%clk 0:02:49]}  fxe4 {[%clk 0:02:49]} 10. Nxe4 {[%clk 0:02:49]}  Ne5 {[%clk 0:02:46]} 11. Bc2 {[%clk 0:02:41]}  Be6 {[%clk 0:02:46]} 12. Kc1 {[%clk 0:01:57]}  O-O-O {[%clk 0:02:45]} 13. Nc5 {[%clk 0:01:53]}  Bd5 {[%clk 0:02:41]} 14. Ne2 {[%clk 0:01:51]}  b6 {[%clk 0:02:38]} 15. Nb3 {[%clk 0:01:47]}  Nxf3 {[%clk 0:01:57]} 16. gxf3 {[%clk 0:01:41]}  Bxf3 {[%clk 0:01:57]} 17. Re1 {[%clk 0:01:36]}  Ng4 {[%clk 0:01:57]} 18. Bd2 {[%clk 0:01:13]}  Nxh2 {[%clk 0:01:53]} 19. Nbd4 {[%clk 0:01:10]}  Bxe2 {[%clk 0:01:47]} 20. Rxe2 {[%clk 0:01:09]}  Bxd4 {[%clk 0:01:45]} 21. cxd4 {[%clk 0:00:44]}  Nf3 {[%clk 0:01:42]} 22. Bc3 {[%clk 0:00:22]}  Nxd4 {[%clk 0:01:42]} 23. Bxd4 {[%clk 0:00:20]}  Rxd4 {[%clk 0:01:41]} 24. Bb3 {[%clk 0:00:17]}  Rf8 {[%clk 0:01:36]} 25. Kc2 {[%clk 0:00:17]}  e5 {[%clk 0:01:32]} 26. Rh1 {[%clk 0:00:14]}  h5 {[%clk 0:01:31]} 27. Rg1 {[%clk 0:00:12]}  Rd6 {[%clk 0:01:27]} 28. Rgg2 {[%clk 0:00:11]}  Re8 {[%clk 0:01:22]} 29. Kc3 {[%clk 0:00:10]}  e4 {[%clk 0:01:17]} 30. Bc2 {[%clk 0:00:10]}  e3 {[%clk 0:01:16]} 31. Bd3 {[%clk 0:00:09]}  Re5 {[%clk 0:01:16]} 32. Bxg6 {[%clk 0:00:07]}  h4 {[%clk 0:01:12]} 33. Bh5 {[%clk 0:00:05]}  Rxh5 {[%clk 0:01:12]} 34. Rxe3 {[%clk 0:00:05]}  Rc5+ {[%clk 0:01:09]} 35. Kb4 {[%clk 0:00:04]}  Rd4+ {[%clk 0:01:06]} 36. Kb3 {[%clk 0:00:03]}  a5 {[%clk 0:01:06]} 37. a3 {[%clk 0:00:03]}  a4+ {[%clk 0:01:00]} 38. Ka2 {[%clk 0:00:03]}  Kb7 {[%clk 0:01:00]} 39. Rh2 {[%clk 0:00:04]}  Rcc4 {[%clk 0:00:59]} 40. Reh3 {[%clk 0:00:04]}  Rg4 {[%clk 0:00:58]} 41. Rf2 {[%clk 0:00:04]}  Ka6 {[%clk 0:00:57]} 42. Rf5 {[%clk 0:00:04]}  c6 {[%clk 0:00:56]} 43. Rh5 {[%clk 0:00:04]}  b5 {[%clk 0:00:56]} 44. Rh2 {[%clk 0:00:05]}  c5 {[%clk 0:00:52]} 45. Rh1 {[%clk 0:00:04]}  b4 {[%clk 0:00:52]} 46. axb4 {[%clk 0:00:04]}  cxb4 {[%clk 0:00:52]} 47. Re1 {[%clk 0:00:03]}  Rc6 {[%clk 0:00:49]} 48. Ree5 {[%clk 0:00:02]}  b3+ {[%clk 0:00:46]} 49. Ka3 {[%clk 0:00:02]}  Rg1 {[%clk 0:00:44]} 50. Ra5+ {[%clk 0:00:03]}  Kb6 {[%clk 0:00:44]} 51. Rxa4 {[%clk 0:00:03]}  Ra1+ {[%clk 0:00:40]} 52. Kxb3 {[%clk 0:00:03]}  Rxa4 {[%clk 0:00:40]} 53. Kxa4 {[%clk 0:00:03]}  Rc4+ {[%clk 0:00:41]} 54. b4 {[%clk 0:00:04]}  Rg4 {[%clk 0:00:39]} 55. Rb5+ {[%clk 0:00:04]}  Kc6 {[%clk 0:00:39]} 56. Rh5 {[%clk 0:00:05]}  Kb6 {[%clk 0:00:33]} 57. Rh6+ {[%clk 0:00:05]}  Kb7 {[%clk 0:00:33]} 58. Ka5 {[%clk 0:00:05]}  Kc7 {[%clk 0:00:31]} 59. Rh7+ {[%clk 0:00:06]}  Kc6 {[%clk 0:00:31]} 60. b5+ {[%clk 0:00:06]}  Kc5 {[%clk 0:00:31]} 61. Rc7+ {[%clk 0:00:06]}  Kd6 {[%clk 0:00:30]} 62. Rh7 {[%clk 0:00:05]}  Kc5 {[%clk 0:00:28]} 63. Rh5+ {[%clk 0:00:06]}  Kd6 {[%clk 0:00:28]} 64. b6 {[%clk 0:00:06]}  Kc6 {[%clk 0:00:26]} 65. Rh6+ {[%clk 0:00:05]}  Kb7 {[%clk 0:00:26]} 66. Rh7+ {[%clk 0:00:05]}  Kb8 {[%clk 0:00:26]} 67. Kb5 {[%clk 0:00:05]}  Rg5+ {[%clk 0:00:25]} 68. Ka6 {[%clk 0:00:05]}  Rg8 {[%clk 0:00:14]} 69. Rxh4 {[%clk 0:00:05]}  Kc8 {[%clk 0:00:13]} 70. Rh7 {[%clk 0:00:05]}  Kb8 {[%clk 0:00:13]} 71. Rc7 {[%clk 0:00:05]}  Rg2 {[%clk 0:00:12]} 72. Rb7+ {[%clk 0:00:06]}  Kc8 {[%clk 0:00:11]} 73. Ra7 {[%clk 0:00:07]}  Ra2+ {[%clk 0:00:11]} 74. Kb5 {[%clk 0:00:08]}  Rxa7 {[%clk 0:00:10]} 75. bxa7 {[%clk 0:00:09]}  Kb7 {[%clk 0:00:11]} 76. Kc5 {[%clk 0:00:07]}  Kxa7 {[%clk 0:00:12]} 1/2-1/2


[Site "https://www.chess.com"]

[Event "Titled Tuesday Blitz May 03 Early 2022"]
[White "Ramirez Vido, Robert Yorisan"]
[Black "Shuvalov, Evgenij"]
[WhiteFideId "3513823"]
[BlackFideId "4187237"]
[WhiteElo "2300"]
[BlackElo "2130"]
[Result "1/2-1/2"]
[Round "06"]
[TimeControl "180+1"]
[Date "2022.05.03"]
[WhiteClock "0:00:35"]
[BlackClock "0:00:11"]

1. Nf3 {[%clk 0:03:00]}  Nf6 {[%clk 0:02:54]} 2. g3 {[%clk 0:02:55]}  g6 {[%clk 0:02:53]} 3. Bg2 {[%clk 0:02:56]}  Bg7 {[%clk 0:02:53]} 4. O-O {[%clk 0:02:57]}  O-O {[%clk 0:02:53]} 5. d4 {[%clk 0:02:57]}  d5 {[%clk 0:02:53]} 6. Nbd2 {[%clk 0:02:55]}  c6 {[%clk 0:02:50]} 7. c3 {[%clk 0:02:54]}  a5 {[%clk 0:02:48]} 8. Ne5 {[%clk 0:02:53]}  Nfd7 {[%clk 0:02:45]} 9. Nd3 {[%clk 0:02:51]}  e5 {[%clk 0:02:43]} 10. dxe5 {[%clk 0:02:51]}  Nxe5 {[%clk 0:02:43]} 11. Nxe5 {[%clk 0:02:51]}  Bxe5 {[%clk 0:02:44]} 12. e4 {[%clk 0:02:52]}  dxe4 {[%clk 0:02:35]} 13. Nxe4 {[%clk 0:02:52]}  Qxd1 {[%clk 0:02:30]} 14. Rxd1 {[%clk 0:02:53]}  Bg4 {[%clk 0:02:30]} 15. f3 {[%clk 0:02:51]}  Be6 {[%clk 0:02:29]} 16. Bh6 {[%clk 0:02:46]}  Bg7 {[%clk 0:02:19]} 17. Bxg7 {[%clk 0:02:44]}  Kxg7 {[%clk 0:02:20]} 18. Nc5 {[%clk 0:02:42]}  Bc8 {[%clk 0:02:19]} 19. f4 {[%clk 0:02:36]}  Re8 {[%clk 0:02:13]} 20. Re1 {[%clk 0:02:35]}  Kf8 {[%clk 0:02:10]} 21. Rxe8+ {[%clk 0:02:32]}  Kxe8 {[%clk 0:02:11]} 22. Re1+ {[%clk 0:02:32]}  Kd8 {[%clk 0:02:11]} 23. Rd1+ {[%clk 0:02:28]}  Kc7 {[%clk 0:02:10]} 24. Re1 {[%clk 0:02:28]}  Nd7 {[%clk 0:01:50]} 25. Nxd7 {[%clk 0:02:13]}  Kxd7 {[%clk 0:01:51]} 26. Bh3+ {[%clk 0:02:10]}  Kd8 {[%clk 0:01:46]} 27. Bxc8 {[%clk 0:01:54]}  Rxc8 {[%clk 0:01:47]} 28. Re5 {[%clk 0:01:53]}  b6 {[%clk 0:01:42]} 29. Kf2 {[%clk 0:01:53]}  Rc7 {[%clk 0:01:41]} 30. Ke3 {[%clk 0:01:52]}  Rd7 {[%clk 0:01:41]} 31. b4 {[%clk 0:01:42]}  a4 {[%clk 0:01:38]} 32. Re4 {[%clk 0:01:36]}  Kc7 {[%clk 0:01:28]} 33. c4 {[%clk 0:01:28]}  Rd1 {[%clk 0:01:23]} 34. Re7+ {[%clk 0:01:28]}  Rd7 {[%clk 0:01:19]} 35. Rxd7+ {[%clk 0:01:27]}  Kxd7 {[%clk 0:01:20]} 36. g4 {[%clk 0:01:26]}  Ke6 {[%clk 0:01:07]} 37. Kd4 {[%clk 0:01:23]}  h5 {[%clk 0:00:52]} 38. h3 {[%clk 0:01:22]}  hxg4 {[%clk 0:00:36]} 39. hxg4 {[%clk 0:01:23]}  f6 {[%clk 0:00:30]} 40. b5 {[%clk 0:01:21]}  cxb5 {[%clk 0:00:17]} 41. cxb5 {[%clk 0:01:22]}  g5 {[%clk 0:00:16]} 42. f5+ {[%clk 0:00:59]}  Kd6 {[%clk 0:00:15]} 43. a3 {[%clk 0:00:59]}  Ke7 {[%clk 0:00:14]} 44. Kd5 {[%clk 0:00:47]}  Kd7 {[%clk 0:00:14]} 45. Kc4 {[%clk 0:00:47]}  Kc7 {[%clk 0:00:13]} 46. Kb4 {[%clk 0:00:46]}  Kd6 {[%clk 0:00:13]} 47. Kxa4 {[%clk 0:00:47]}  Kc5 {[%clk 0:00:13]} 48. Kb3 {[%clk 0:00:44]}  Kxb5 {[%clk 0:00:14]} 49. a4+ {[%clk 0:00:41]}  Kc5 {[%clk 0:00:13]} 50. Kc3 {[%clk 0:00:41]}  Kd5 {[%clk 0:00:12]} 51. Kb4 {[%clk 0:00:41]}  Kc6 {[%clk 0:00:12]} 52. Kc4 {[%clk 0:00:42]}  Kd6 {[%clk 0:00:12]} 53. Kd4 {[%clk 0:00:38]}  Kc6 {[%clk 0:00:11]} 54. Kc4 {[%clk 0:00:38]}  Kd6 {[%clk 0:00:12]} 55. Kb5 {[%clk 0:00:36]}  Kc7 {[%clk 0:00:12]} 56. Kb4 {[%clk 0:00:35]}  Kc6 {[%clk 0:00:11]} 57. Kc4 {[%clk 0:00:35]} 1/2-1/2


[Site "https://www.chess.com"]

[Event "Titled Tuesday Blitz May 03 Early 2022"]
[White "Ratnakaran, K."]
[Black "Mirzoev, Azer"]
[WhiteFideId "5005507"]
[BlackFideId "13400304"]
[WhiteElo "2407"]
[BlackElo "2525"]
[Result "0-1"]
[Round "06"]
[TimeControl "180+1"]
[Date "2022.05.03"]
[WhiteClock "0:00:53"]
[BlackClock "0:00:27"]

1. e4 {[%clk 0:03:00]}  d5 {[%clk 0:02:59]} 2. exd5 {[%clk 0:03:00]}  Qxd5 {[%clk 0:02:59]} 3. Nf3 {[%clk 0:02:59]}  Nf6 {[%clk 0:02:58]} 4. Nc3 {[%clk 0:02:58]}  Qa5 {[%clk 0:02:57]} 5. Bc4 {[%clk 0:02:58]}  c6 {[%clk 0:02:57]} 6. d4 {[%clk 0:02:57]}  Bg4 {[%clk 0:02:55]} 7. h3 {[%clk 0:02:56]}  Bh5 {[%clk 0:02:55]} 8. g4 {[%clk 0:02:54]}  Bg6 {[%clk 0:02:56]} 9. Qe2 {[%clk 0:02:54]}  Nbd7 {[%clk 0:02:53]} 10. Bd2 {[%clk 0:02:51]}  e6 {[%clk 0:02:48]} 11. O-O-O {[%clk 0:02:50]}  Bb4 {[%clk 0:02:47]} 12. Bxe6 {[%clk 0:02:49]}  fxe6 {[%clk 0:02:46]} 13. Qxe6+ {[%clk 0:02:48]}  Kd8 {[%clk 0:02:46]} 14. g5 {[%clk 0:02:44]}  Re8 {[%clk 0:02:42]} 15. Qb3 {[%clk 0:02:43]}  Nd5 {[%clk 0:02:00]} 16. Nxd5 {[%clk 0:02:42]}  Bxd2+ {[%clk 0:01:59]} 17. Nxd2 {[%clk 0:02:42]}  cxd5 {[%clk 0:01:58]} 18. Rhe1 {[%clk 0:02:24]}  Kc7 {[%clk 0:01:56]} 19. Nf3 {[%clk 0:02:23]}  Rxe1 {[%clk 0:01:53]} 20. Rxe1 {[%clk 0:02:22]}  Be4 {[%clk 0:01:49]} 21. Rd1 {[%clk 0:02:14]}  Rf8 {[%clk 0:01:47]} 22. Nd2 {[%clk 0:02:11]}  Bg6 {[%clk 0:01:35]} 23. h4 {[%clk 0:02:10]}  Kb8 {[%clk 0:01:30]} 24. Re1 {[%clk 0:02:04]}  Qc7 {[%clk 0:01:09]} 25. c3 {[%clk 0:01:59]}  Qd6 {[%clk 0:01:00]} 26. f3 {[%clk 0:01:57]}  a6 {[%clk 0:00:59]} 27. a4 {[%clk 0:01:56]}  Rf4 {[%clk 0:00:54]} 28. a5 {[%clk 0:01:41]}  Rxh4 {[%clk 0:00:53]} 29. Qd1 {[%clk 0:01:40]}  Rh2 {[%clk 0:00:51]} 30. Re3 {[%clk 0:01:34]}  Rg2 {[%clk 0:00:49]} 31. Qe1 {[%clk 0:01:34]}  Rxg5 {[%clk 0:00:47]} 32. b4 {[%clk 0:01:30]}  Rg2 {[%clk 0:00:46]} 33. Kb2 {[%clk 0:01:28]}  Qf4 {[%clk 0:00:44]} 34. Ka3 {[%clk 0:01:25]}  Ka7 {[%clk 0:00:43]} 35. Nb3 {[%clk 0:01:24]}  Qf5 {[%clk 0:00:38]} 36. Re7 {[%clk 0:01:09]}  Qc2 {[%clk 0:00:36]} 37. Qa1 {[%clk 0:01:08]}  Bf5 {[%clk 0:00:33]} 38. b5 {[%clk 0:01:05]}  axb5 {[%clk 0:00:32]} 39. Kb4 {[%clk 0:01:01]}  Qd3 {[%clk 0:00:30]} 40. a6 {[%clk 0:00:53]}  Qc4+ {[%clk 0:00:28]} 41. Ka3 {[%clk 0:00:53]}  Qa4# {[%clk 0:00:27]} 0-1


[Site "https://www.chess.com"]